fUSD/lending_fUSD_20250119
["ID","MTS","AMOUNT","RATE_DAILY","PERIOD"]
[349558183,1737294645217,-500.0,0.00019178,2]
[349558184,1737294645226,-500.0,0.00019178,2]
[349558185,1737294645244,-500.0,0.00019178,2]
[349558186,1737294645257,-500.0,0.00019178,2]
[349558187,1737294645267,-214.010247,0.00019178,2]
[349558188,1737294645276,-500.0,0.00019178,2]
[349558189,1737294645285,-500.0,0.00019178,2]
[349558190,1737294645295,-500.0,0.00019178,2]
[349558191,1737294645304,-500.0,0.00019178,2]
[349558192,1737294645314,-500.0,0.00019178,2]
[349558193,1737294645323,-500.0,0.00019178,2]
[349558194,1737294645332,-500.0,0.00019178,2]
[349558195,1737294645342,-500.0,0.00019178,2]
[349558196,1737294645351,-500.0,0.00019178,2]
[349558197,1737294645361,-500.0,0.00019178,2]
[349558198,1737294645371,-500.0,0.00019178,2]
[349558199,1737294645380,-500.0,0.00019178,2]
[349558200,1737294645390,-500.0,0.00019178,2]
[349558201,1737294645399,-500.0,0.00019178,2]
[349558202,1737294645408,-500.0,0.00019178,2]
[349558203,1737294645419,-500.0,0.00019178,2]
[349558204,1737294645429,-500.0,0.00019178,2]
[349558205,1737294645438,-500.0,0.00019178,2]
[349558206,1737294645447,-500.0,0.00019178,2]
[349558207,1737294645461,-500.0,0.00019178,2]
[349558208,1737294645470,-500.0,0.00019178,2]
[349558209,1737294645480,-500.0,0.00019178,2]
[349558210,1737294645489,-500.0,0.00019178,2]
[349558211,1737294645500,-500.0,0.00019178,2]
[349558212,1737294645509,-500.0,0.00019178,2]
[349558213,1737294645519,-500.0,0.00019178,2]
[349558214,1737294645530,-512.34034123,0.00019178,2]
[349558215,1737294645539,-500.0,0.00019178,2]
[349558216,1737294645549,-500.0,0.00019178,2]
[349558217,1737294645558,-500.0,0.00019178,2]
[349558218,1737294645567,-500.0,0.00019178,2]
[349558219,1737294645576,-500.0,0.00019178,2]
[349558220,1737294645586,-500.0,0.00019178,2]
[349558221,1737294645595,-516.54962337,0.00019178,2]
[349558222,1737294645604,-500.0,0.00019178,2]
[349558223,1737294645614,-500.0,0.00019178,2]
[349558224,1737294645624,-500.0,0.00019178,2]
[349558225,1737294645633,-500.0,0.00019178,2]
[349558226,1737294645643,-500.0,0.00019178,2]
[349558227,1737294645652,-500.0,0.00019178,2]
[349558228,1737294645662,-500.0,0.00019178,2]
[349558229,1737294645671,-500.0,0.00019178,2]
[349558230,1737294645681,-500.0,0.00019178,2]
[349558231,1737294645691,-259.58069358,0.00019178,2]
[349558232,1737294645700,-500.0,0.00019178,2]
[349558233,1737294645709,-614.19665902,0.00019178,2]
[349558234,1737294645718,-500.0,0.00019178,2]
[349558235,1737294645729,-500.0,0.00019178,2]
[349558236,1737294645738,-500.0,0.00019178,2]
[349558237,1737294645747,-500.0,0.00019178,2]
[349558238,1737294645757,-513.14028951,0.00019178,2]
[349558239,1737294645768,-500.0,0.00019178,2]
[349558240,1737294645778,-500.0,0.00019178,2]
[349558241,1737294645787,-500.0,0.00019178,2]
[349558242,1737294645797,-500.0,0.00019178,2]
[349558243,1737294645806,-500.0,0.00019178,2]
[349558244,1737294645816,-500.0,0.00019178,2]
[349558245,1737294645825,-500.0,0.00019178,2]
[349558246,1737294645834,-500.0,0.00019178,2]
[349558247,1737294645844,-500.0,0.00019178,2]
[349558248,1737294645853,-500.0,0.00019178,2]
[349558249,1737294645862,-500.0,0.00019178,2]
[349558250,1737294645871,-500.0,0.00019178,2]
[349558251,1737294645880,-500.0,0.00019178,2]
[349558252,1737294645890,-500.99393048,0.00019178,2]
[349558253,1737294645899,-500.0,0.00019178,2]
[349558254,1737294645909,-500.0,0.00019178,2]
[349558255,1737294645919,-766.65,0.00019178,2]
[349558256,1737294645929,-500.0,0.00019178,2]
[349558257,1737294645938,-500.0,0.00019178,2]
[349558258,1737294645947,-500.0,0.00019178,2]
[349558259,1737294645956,-500.0,0.00019178,2]
[349558260,1737294645965,-500.0,0.00019178,2]
[349558261,1737294645975,-500.0,0.00019178,2]
[349558262,1737294645984,-500.0,0.00019178,2]
[349558263,1737294645993,-500.0,0.00019178,2]
[349558264,1737294646002,-500.0,0.00019178,2]
[349558265,1737294646012,-500.0,0.00019178,2]
[349558266,1737294646021,-500.0,0.00019178,2]
[349558267,1737294646030,-500.0,0.00019178,2]
[349558268,1737294646039,-500.0,0.00019178,2]
[349558269,1737294646048,-500.0,0.00019178,2]
[349558270,1737294646058,-500.0,0.00019178,2]
[349558271,1737294646067,-500.0,0.00019178,2]
[349558272,1737294646077,-500.0,0.00019178,2]
[349558273,1737294646086,-500.0,0.00019178,2]
[349558275,1737294646095,-500.0,0.00019178,2]
[349558277,1737294646105,-631.19,0.00019178,2]
[349558278,1737294646115,-651.13,0.00019178,2]
[349558279,1737294646123,-571.36,0.00019178,2]
[349558280,1737294646132,-500.0,0.00019178,2]
[349558281,1737294646141,-500.0,0.00019178,2]
[349558282,1737294646151,-500.0,0.00019178,2]
[349558283,1737294646162,-500.0,0.00019178,2]
[349558284,1737294646172,-500.0,0.00019178,2]
[349558285,1737294646183,-500.0,0.00019178,2]
[349558286,1737294646192,-500.0,0.00019178,2]
[349558287,1737294646205,-500.0,0.00019178,2]
[349558288,1737294646214,-500.0,0.00019178,2]
[349558289,1737294646224,-500.0,0.00019178,2]
[349558290,1737294646234,-500.0,0.00019178,2]
[349558292,1737294646243,-508.79731797,0.00019178,2]
[349558293,1737294646252,-500.0,0.00019178,2]
[349558294,1737294646262,-500.0,0.00019178,2]
[349558295,1737294646271,-500.0,0.00019178,2]
[349558296,1737294646281,-500.0,0.00019178,2]
[349558297,1737294646291,-500.0,0.00019178,2]
[349558298,1737294646301,-421.78984038,0.00019178,2]
[349558300,1737294646998,-78.21015962,0.00019178,2]
[349558301,1737294647008,-506.71,0.00019178,2]
[349558302,1737294647018,-500.0,0.00019178,2]
[349558303,1737294647028,-500.0,0.00019178,2]
[349558304,1737294647038,-500.0,0.00019178,2]
[349558305,1737294647048,-500.0,0.00019178,2]
[349558306,1737294647057,-500.0,0.00019178,2]
[349558307,1737294647067,-500.0,0.00019178,2]
[349558308,1737294647076,-500.0,0.00019178,2]
[349558309,1737294647086,-500.0,0.00019178,2]
[349558310,1737294647095,-500.0,0.00019178,2]
[349558311,1737294647104,-500.0,0.00019178,2]
[349558312,1737294647113,-500.0,0.00019178,2]
[349558313,1737294647123,-500.0,0.00019178,2]
[349558314,1737294647132,-500.0,0.00019178,2]
[349558315,1737294647141,-500.0,0.00019178,2]
[349558316,1737294647151,-500.0,0.00019178,2]
[349558317,1737294647164,-500.0,0.00019178,2]
[349558318,1737294647173,-500.0,0.00019178,2]
[349558319,1737294647182,-1984.1,0.00019178,2]
[349558320,1737294647191,-500.0,0.00019178,2]
[349558321,1737294647201,-500.0,0.00019178,2]
[349558322,1737294647211,-1003.93,0.00019178,2]
[349558323,1737294647220,-500.0,0.00019178,2]
[349558324,1737294647231,-714.65,0.00019178,2]
[349558325,1737294647241,-500.0,0.00019178,2]
[349558326,1737294647251,-500.0,0.00019178,2]
[349558327,1737294647261,-500.0,0.00019178,2]
[349558328,1737294647271,-534.14,0.00019178,2]
[349558329,1737294647280,-500.0,0.00019178,2]
[349558330,1737294647289,-500.0,0.00019178,2]
[349558331,1737294647300,-500.0,0.00019178,2]
[349558332,1737294647310,-500.0,0.00019178,2]
[349558333,1737294647321,-947.05,0.00019178,2]
[349558334,1737294647331,-500.0,0.00019178,2]
[349558335,1737294647341,-500.0,0.00019178,2]
[349558336,1737294647351,-500.0,0.00019178,2]
[349558337,1737294647362,-1177.91,0.00019178,2]
[349558338,1737294647372,-500.0,0.00019178,2]
[349558339,1737294647381,-298.30204999,0.00019178,2]
[349558340,1737294647391,-500.0,0.00019178,2]
[349558341,1737294647400,-500.0,0.00019178,2]
[349558342,1737294647411,-500.0,0.00019178,2]
[349558343,1737294647425,-387.73602467,0.00019178,2]
[349558344,1737294647435,-5000.0,0.00019178,2]
[349558345,1737294647444,-200.0,0.00019178,2]
[349558346,1737294647454,-500.0,0.00019178,2]
[349558347,1737294647466,-500.0,0.00019178,2]
[349558348,1737294647480,-500.0,0.00019178,2]
[349558349,1737294647490,-1903.8,0.00019178,2]
[349558350,1737294647501,-500.0,0.00019178,2]
[349558351,1737294647511,-516.6,0.00019178,2]
[349558352,1737294647521,-2621.04,0.00019178,2]
[349558353,1737294647531,-500.0,0.00019178,2]
[349558354,1737294647544,-500.0,0.00019178,2]
[349558355,1737294647555,-500.0,0.00019178,2]
[349558356,1737294647564,-500.0,0.00019178,2]
[349558357,1737294647574,-2021.17,0.00019178,2]
[349558358,1737294647584,-500.0,0.00019178,2]
[349558359,1737294647594,-1978.25,0.00019178,2]
[349558360,1737294647603,-500.0,0.00019178,2]
[349558361,1737294647613,-500.0,0.00019178,2]
[349558362,1737294647623,-500.0,0.00019178,2]
[349558363,1737294647632,-500.0,0.00019178,2]
[349558364,1737294647642,-500.0,0.00019178,2]
[349558365,1737294647651,-500.0,0.00019178,2]
[349558366,1737294647662,-500.0,0.00019178,2]
[349558367,1737294647674,-500.0,0.00019178,2]
[349558368,1737294647684,-500.0,0.00019178,2]
[349558369,1737294647693,-500.0,0.00019178,2]
[349558370,1737294647703,-500.0,0.00019178,2]
[349558371,1737294647712,-500.0,0.00019178,2]
[349558372,1737294647722,-500.0,0.00019178,2]
[349558373,1737294647732,-500.0,0.00019178,2]
[349558374,1737294647741,-500.0,0.00019178,2]
[349558375,1737294647750,-500.0,0.00019178,2]
[349558376,1737294647760,-424.45785641,0.00019178,2]
[349558377,1737294647769,-314.00606887,0.00019178,2]
[349558378,1737294647787,-185.99393113,0.00019178,2]
[349558379,1737294647798,-500.0,0.00019178,2]
[349558380,1737294647807,-641.82,0.00019178,2]
[349558381,1737294647816,-500.0,0.00019178,2]
[349558382,1737294647826,-500.0,0.00019178,2]
[349558383,1737294647835,-500.0,0.00019178,2]
[349558384,1737294647845,-500.0,0.00019178,2]
[349558385,1737294647854,-1452.7,0.00019178,2]
[349558386,1737294647863,-500.0,0.00019178,2]
[349558387,1737294647873,-500.0,0.00019178,2]
[349558388,1737294647883,-500.0,0.00019178,2]
[349558389,1737294647892,-1849.95,0.00019178,2]
[349558390,1737294647901,-3475.78,0.00019178,2]
[349558391,1737294647914,-500.0,0.00019178,2]
[349558392,1737294647923,-509.1139028,0.00019178,2]
[349558393,1737294647933,-638.09,0.00019178,2]
[349558394,1737294647942,-287.54762868,0.00019178,2]
[349558395,1737294647951,-1103.4,0.00019178,2]
[349558396,1737294647961,-500.0,0.00019178,2]
[349558397,1737294647970,-500.0,0.00019178,2]
[349558398,1737294647979,-500.0,0.00019178,2]
[349558399,1737294647988,-1128.14,0.00019178,2]
[349558400,1737294647998,-942.72,0.00019178,2]
[349558401,1737294648008,-500.0,0.00019178,2]
[349558402,1737294648017,-991.37,0.00019178,2]
[349558403,1737294648027,-500.0,0.00019178,2]
[349558404,1737294648036,-500.0,0.00019178,2]
[349558405,1737294648045,-2068.32,0.00019178,2]
[349558406,1737294648055,-500.0,0.00019178,2]
[349558407,1737294648065,-500.0,0.00019178,2]
[349558408,1737294648075,-813.48,0.00019178,2]
[349558409,1737294648084,-832.56,0.00019178,2]
[349558410,1737294648094,-500.0,0.00019178,2]
[349558411,1737294648104,-500.0,0.00019178,2]
[349558412,1737294648114,-500.0,0.00019178,2]
[349558413,1737294648124,-500.0,0.00019178,2]
[349558414,1737294648133,-1088.38,0.00019178,2]
[349558415,1737294648143,-952.75,0.00019178,2]
[349558416,1737294648153,-2363.96,0.00019178,2]
[349558417,1737294648163,-500.0,0.00019178,2]
[349558418,1737294648174,-500.0,0.00019178,2]
[349558419,1737294648183,-500.0,0.00019178,2]
[349558420,1737294648193,-500.0,0.00019178,2]
[349558421,1737294648202,-1571.42,0.00019178,2]
[349558422,1737294648211,-813.22,0.00019178,2]
[349558423,1737294648222,-500.0,0.00019178,2]
[349558424,1737294648231,-500.0,0.00019178,2]
[349558425,1737294648240,-500.0,0.00019178,2]
[349558426,1737294648250,-930.95,0.00019178,2]
[349558427,1737294648259,-500.0,0.00019178,2]
[349558428,1737294648268,-1712.19,0.00019178,2]
[349558429,1737294648278,-210.53471146,0.00019178,2]
[349558430,1737294648287,-3870.74,0.00019178,2]
[349558431,1737294648297,-500.0,0.00019178,2]
[349558432,1737294648307,-500.0,0.00019178,2]
[349558433,1737294648317,-500.0,0.00019178,2]
[349558434,1737294648326,-1670.71,0.00019178,2]
[349558435,1737294648336,-500.0,0.00019178,2]
[349558436,1737294648345,-500.0,0.00019178,2]
[349558437,1737294648354,-500.0,0.00019178,2]
[349558438,1737294648363,-500.0,0.00019178,2]
[349558439,1737294648373,-577.4,0.00019178,2]
[349558440,1737294648382,-500.0,0.00019178,2]
[349558441,1737294648391,-587.14,0.00019178,2]
[349558442,1737294648401,-619.53,0.00019178,2]
[349558443,1737294648413,-3809.89,0.00019178,2]
[349558444,1737294648423,-500.0,0.00019178,2]
[349558445,1737294648434,-473.18882447,0.00019178,2]
[349558446,1737294648444,-500.0,0.00019178,2]
[349558447,1737294648454,-500.0,0.00019178,2]
[349558448,1737294648464,-2556.56,0.00019178,2]
[349558449,1737294648474,-500.0,0.00019178,2]
[349558450,1737294648484,-500.0,0.00019178,2]
[349558451,1737294648494,-1620.64,0.00019178,2]
[349558452,1737294648503,-1430.22,0.00019178,2]
[349558453,1737294648513,-500.0,0.00019178,2]
[349558454,1737294648522,-500.0,0.00019178,2]
[349558455,1737294648532,-500.0,0.00019178,2]
[349558456,1737294648542,-792.53,0.00019178,2]
[349558457,1737294648553,-596.45266775,0.00019178,2]
[349558458,1737294648563,-396.60833368,0.00019178,2]
[349558459,1737294648590,-103.39166632,0.00019178,2]
[349558460,1737294648599,-500.0,0.00019178,2]
[349558461,1737294648609,-522.97,0.00019178,2]
[349558462,1737294648619,-500.0,0.00019178,2]
[349558463,1737294648629,-500.0,0.00019178,2]
[349558464,1737294648639,-2113.16,0.00019178,2]
[349558465,1737294648649,-1409.22,0.00019178,2]
[349558466,1737294648658,-500.0,0.00019178,2]
[349558467,1737294648670,-500.0,0.00019178,2]
[349558468,1737294648679,-500.0,0.00019178,2]
[349558469,1737294648688,-677.17,0.00019178,2]
[349558470,1737294648697,-500.0,0.00019178,2]
[349558471,1737294648707,-568.36,0.00019178,2]
[349558472,1737294648716,-500.0,0.00019178,2]
[349558473,1737294648726,-1206.02,0.00019178,2]
[349558474,1737294648735,-500.0,0.00019178,2]
[349558475,1737294648744,-902.52,0.00019178,2]
[349558476,1737294648754,-500.0,0.00019178,2]
[349558477,1737294648763,-500.0,0.00019178,2]
[349558478,1737294648773,-500.0,0.00019178,2]
[349558479,1737294648782,-568.84811581,0.00019178,2]
[349558480,1737294648792,-611.95,0.00019178,2]
[349558481,1737294648801,-500.0,0.00019178,2]
[349558482,1737294648811,-4628.88,0.00019178,2]
[349558483,1737294648819,-7111.63,0.00019178,2]
[349558484,1737294648828,-500.0,0.00019178,2]
[349558485,1737294648836,-500.0,0.00019178,2]
[349558486,1737294648846,-500.0,0.00019178,2]
[349558487,1737294648855,-500.0,0.00019178,2]
[349558488,1737294648865,-500.0,0.00019178,2]
[349558489,1737294648874,-500.0,0.00019178,2]
[349558490,1737294648884,-500.0,0.00019178,2]
[349558491,1737294648894,-500.0,0.00019178,2]
[349558492,1737294648903,-1367.9,0.00019178,2]
[349558493,1737294648913,-1228.27,0.00019178,2]
[349558494,1737294648922,-754.47,0.00019178,2]
[349558495,1737294648932,-500.0,0.00019178,2]
[349558496,1737294648941,-500.0,0.00019178,2]
[349558497,1737294648951,-500.0,0.00019178,2]
[349558498,1737294648960,-272.28692683,0.00019178,2]
[349558499,1737294648969,-500.0,0.00019178,2]
[349558500,1737294648979,-502.17,0.00019178,2]
[349558501,1737294648988,-553.75,0.00019178,2]
[349558502,1737294648997,-500.0,0.00019178,2]
[349558503,1737294649006,-500.0,0.00019178,2]
[349558504,1737294649015,-993.21,0.00019178,2]
[349558505,1737294649025,-2508.35,0.00019178,2]
[349558506,1737294649035,-500.0,0.00019178,2]
[349558507,1737294649046,-2375.53,0.00019178,2]
[349558508,1737294649056,-500.0,0.00019178,2]
[349558509,1737294649066,-500.0,0.00019178,2]
[349558510,1737294649075,-503.51780733,0.00019178,2]
[349558511,1737294649085,-980.32,0.00019178,2]
[349558512,1737294649094,-500.0,0.00019178,2]
[349558513,1737294649103,-1073.24,0.00019178,2]
[349558514,1737294649113,-500.0,0.00019178,2]
[349558515,1737294649123,-624.03,0.00019178,2]
[349558516,1737294649132,-500.0,0.00019178,2]
[349558517,1737294649142,-1130.97,0.00019178,2]
[349558518,1737294649152,-527.75566491,0.00019178,2]
[349558519,1737294649163,-500.0,0.00019178,2]
[349558520,1737294649173,-727.85,0.00019178,2]
[349558521,1737294649183,-262.31929283,0.00019178,2]
[349558522,1737294649193,-500.0,0.00019178,2]
[349558523,1737294649203,-500.0,0.00019178,2]
[349558524,1737294649213,-729.63,0.00019178,2]
[349558525,1737294649223,-500.0,0.00019178,2]
[349558526,1737294649234,-561.46,0.00019178,2]
[349558527,1737294649243,-904.3,0.00019178,2]
[349558528,1737294649254,-6246.91,0.00019178,2]
[349558529,1737294649263,-500.0,0.00019178,2]
[349558530,1737294649273,-500.0,0.00019178,2]
[349558531,1737294649283,-500.0,0.00019178,2]
[349558532,1737294649293,-500.0,0.00019178,2]
[349558533,1737294649303,-500.0,0.00019178,2]
[349558534,1737294649314,-500.0,0.00019178,2]
[349558535,1737294649324,-500.0,0.00019178,2]
[349558536,1737294649338,-500.0,0.00019178,2]
[349558537,1737294649350,-660.89,0.00019178,2]
[349558538,1737294649363,-758.73,0.00019178,2]
[349558539,1737294649375,-500.0,0.00019178,2]
[349558540,1737294649389,-500.0,0.00019178,2]
[349558541,1737294649400,-2205.04,0.00019178,2]
[349558542,1737294649412,-500.0,0.00019178,2]
[349558543,1737294649423,-500.0,0.00019178,2]
[349558544,1737294649434,-500.0,0.00019178,2]
[349558545,1737294649446,-500.0,0.00019178,2]
[349558546,1737294649460,-500.0,0.00019178,2]
[349558547,1737294649473,-838.57,0.00019178,2]
[349558548,1737294649485,-704.47,0.00019178,2]
[349558549,1737294649499,-1055.15,0.00019178,2]
[349558550,1737294649511,-500.0,0.00019178,2]
[349558551,1737294649523,-910.56,0.00019178,2]
[349558552,1737294649535,-1744.43,0.00019178,2]
[349558553,1737294649547,-500.0,0.00019178,2]
[349558554,1737294649558,-500.0,0.00019178,2]
[349558555,1737294649569,-558.94,0.00019178,2]
[349558556,1737294649580,-699.07,0.00019178,2]
[349558557,1737294649592,-1328.94,0.00019178,2]
[349558558,1737294649604,-3173.14,0.00019178,2]
[349558559,1737294649616,-947.64,0.00019178,2]
[349558560,1737294649628,-621.47,0.00019178,2]
[349558561,1737294649640,-6652.01,0.00019178,2]
[349558562,1737294649652,-635.05,0.00019178,2]
[349558563,1737294649664,-500.0,0.00019178,2]
[349558564,1737294649676,-500.0,0.00019178,2]
[349558565,1737294649687,-500.0,0.00019178,2]
[349558566,1737294649699,-1176.73,0.00019178,2]
[349558567,1737294649710,-2994.27,0.00019178,2]
[349558568,1737294649723,-517.25858876,0.00019178,2]
[349558569,1737294649733,-500.0,0.00019178,2]
[349558570,1737294649746,-988.02,0.00019178,2]
[349558571,1737294649758,-500.0,0.00019178,2]
[349558572,1737294649768,-2861.33,0.00019178,2]
[349558573,1737294649780,-1301.55,0.00019178,2]
[349558574,1737294649791,-676.13,0.00019178,2]
[349558575,1737294649802,-500.0,0.00019178,2]
[349558576,1737294649814,-833.06,0.00019178,2]
[349558577,1737294649827,-500.0,0.00019178,2]
[349558578,1737294649839,-500.0,0.00019178,2]
[349558579,1737294649850,-500.0,0.00019178,2]
[349558580,1737294649862,-500.0,0.00019178,2]
[349558581,1737294649873,-500.0,0.00019178,2]
[349558582,1737294649883,-1595.35,0.00019178,2]
[349558583,1737294649894,-914.30382932,0.00019178,2]
[349558584,1737294649918,-108.70617068,0.00019178,2]
[349558585,1737294649931,-192.046847,0.00019178,2]
[349558587,1737294758314,150.0,0.0001301,2]
[349558591,1737295025007,237.94,0.00010137,2]
[349558596,1737295554143,-300.0,0.00014899,2]
[349558597,1737295554165,-977.91388075,0.000149,2]
[349558600,1737295639096,-486.90461365,0.000149,2]
[349558601,1737295750136,-3936.38550384,0.000149,2]
[349558602,1737295750157,-201.27629018,0.000149,2]
[349558603,1737295750178,-550.0,0.00015,2]
[349558604,1737295750204,-669.08,0.00016291,2]
[349558605,1737295750226,-237.94,0.00016813,2]
[349558606,1737295750246,-201.27629016,0.00016989,2]
[349558607,1737295750268,-300.0,0.00016999,2]
[349558608,1737295750289,-600.0,0.00017,2]
[349558609,1737295750310,-18028.83609784,0.00017,2]
[349558610,1737295751134,-493.43891467,0.00017,2]
[349558648,1737295831614,-503.0,0.00017342,2]
[349558650,1737295831624,-1000.0,0.00017528,2]
[349558652,1737295831633,-250.0,0.00017568,2]
[349558654,1737295831643,-152.29,0.0001765,2]
[349558656,1737295831653,-3000.0,0.0001766,2]
[349558658,1737295831662,-152.24,0.0001795,2]
[349558660,1737295831671,-152.24,0.00017958,2]
[349558662,1737295831680,-152.24,0.00017967,2]
[349558663,1737295831690,-152.24,0.00017975,2]
[349558664,1737295831700,-152.24,0.00017983,2]
[349558665,1737295831710,-152.24,0.00017991,2]
[349558666,1737295831719,-152.24,0.00017999,2]
[349558667,1737295831729,-152.24,0.00018007,2]
[349558668,1737295831739,-152.24,0.00018016,2]
[349558669,1737295831754,-152.24,0.00018024,2]
[349558670,1737295831763,-152.24,0.00018032,2]
[349558671,1737295831773,-152.24,0.0001804,2]
[349558672,1737295831783,-329.45,0.00018267,2]
[349558673,1737295831794,-200.0,0.00018278,2]
[349558674,1737295831805,-300.0,0.00018314,2]
[349558675,1737295831815,-250.0,0.00018523,2]
[349558676,1737295831829,-669.08,0.00018555,2]
[349558677,1737295831839,-800.0,0.000187,6]
[349558678,1737295831848,-150.12,0.00018797,2]
[349558679,1737295831858,-300.0,0.00018799,2]
[349558680,1737295831871,-1700.0,0.000188,6]
[349558681,1737295831881,-156.22,0.00018849,2]
[349558682,1737295831891,-2600.0,0.000189,6]
[349558683,1737295831903,-250.0,0.0001892,2]
[349558684,1737295831914,-1023.6,0.00018951,2]
[349558685,1737295831923,-3000.0,0.0001899,2]
[349558686,1737295831933,-650.0,0.00019,2]
[349558687,1737295831943,-524.185,0.00019078,2]
[349558688,1737295831952,-201.27629016,0.00019078,2]
[349558689,1737295831962,-696.12282006,0.00019088,2]
[349558690,1737295831972,-2369.5618169,0.000191,2]
[349558691,1737295831982,-421.76103696,0.000191,2]
[349558692,1737295831991,-506.22125084,0.00019177,2]
[349558693,1737295832003,-196.04445627,0.00019177,2]
[349558694,1737295832012,-500.0,0.00019178,2]
[349558695,1737295832021,-500.0,0.00019178,2]
[349558696,1737295832031,-500.0,0.00019178,2]
[349558697,1737295832041,-500.0,0.00019178,2]
[349558698,1737295832050,-500.0,0.00019178,2]
[349558699,1737295832060,-500.0,0.00019178,2]
[349558700,1737295832070,-500.0,0.00019178,2]
[349558701,1737295832080,-500.0,0.00019178,2]
[349558702,1737295832089,-500.0,0.00019178,2]
[349558703,1737295832099,-500.0,0.00019178,2]
[349558704,1737295832108,-500.0,0.00019178,2]
[349558705,1737295832118,-500.0,0.00019178,2]
[349558706,1737295832127,-500.0,0.00019178,2]
[349558707,1737295832136,-500.0,0.00019178,2]
[349558708,1737295832146,-500.0,0.00019178,2]
[349558709,1737295832156,-500.0,0.00019178,2]
[349558710,1737295832165,-500.0,0.00019178,2]
[349558711,1737295832174,-500.0,0.00019178,2]
[349558712,1737295832184,-500.0,0.00019178,2]
[349558713,1737295832194,-500.0,0.00019178,2]
[349558714,1737295832203,-500.0,0.00019178,2]
[349558715,1737295832213,-500.0,0.00019178,2]
[349558716,1737295832222,-500.0,0.00019178,2]
[349558717,1737295832232,-500.0,0.00019178,2]
[349558718,1737295832241,-500.0,0.00019178,2]
[349558719,1737295832253,-500.0,0.00019178,2]
[349558720,1737295832262,-500.0,0.00019178,2]
[349558721,1737295832271,-500.0,0.00019178,2]
[349558722,1737295832281,-500.0,0.00019178,2]
[349558723,1737295832290,-500.0,0.00019178,2]
[349558724,1737295832299,-500.0,0.00019178,2]
[349558725,1737295832309,-500.0,0.00019178,2]
[349558726,1737295832318,-500.0,0.00019178,2]
[349558727,1737295832328,-500.0,0.00019178,2]
[349558728,1737295832336,-500.0,0.00019178,2]
[349558729,1737295832345,-647.95,0.00019178,2]
[349558730,1737295832354,-500.0,0.00019178,2]
[349558731,1737295832364,-500.0,0.00019178,2]
[349558732,1737295832372,-500.0,0.00019178,2]
[349558733,1737295832382,-500.0,0.00019178,2]
[349558734,1737295832391,-216.10760989,0.00019178,2]
[349558735,1737295832401,-500.0,0.00019178,2]
[349558737,1737295832411,-500.0,0.00019178,2]
[349558739,1737295832421,-1528.88,0.00019178,2]
[349558741,1737295832432,-500.0,0.00019178,2]
[349558743,1737295832442,-500.0,0.00019178,2]
[349558744,1737295832451,-500.0,0.00019178,2]